[Event "European Rapid Championship 2021"]
[Site "Katowice"]
[Date "2021.12.18"]
[Round "6.12"]
[White "Szczurek, Krzysztof"]
[Black "Druckenthaner, Andreas"]
[Result "1-0"]
[ECO "C54"]
[WhiteElo "2086"]
[BlackElo "2291"]
[Annotator "NA"]
[PlyCount "77"]
[EventDate "2021.12.18"]
[EventType "swiss"]
[EventCountry "POL"]
[SourceTitle "playchess.com"]
[Source "ChessBase"]
[SourceQuality "1"]
[TimeControl "900+10"]

1. e4 {[%emt 0:00:02]} e5 {[%emt 0:00:01]} 2. Nf3 {[%emt 0:00:02]} Nc6 {
[%emt 0:00:01]} 3. Bc4 {[%emt 0:00:02]} Bc5 {[%emt 0:00:03]} 4. c3 {[%emt 0:00:
01]} Nf6 {[%emt 0:00:02]} 5. d3 {[%emt 0:00:02]} d6 {[%emt 0:00:03]} 6. Bb3 {
[%emt 0:00:02]} Bb6 {[%emt 0:00:06]} 7. Nbd2 {[%emt 0:00:04]} Ne7 {[%emt 0:00:
06]} 8. Nf1 {[%emt 0:00:03]} Ng6 {[%emt 0:00:03]} 9. Ng3 {[%emt 0:00:02]} Bg4 {
[%emt 0:00:24]} 10. h3 {[%emt 0:00:19]} Be6 {[%emt 0:00:02]} 11. Be3 {[%emt 0:
00:09]} O-O {[%emt 0:00:20]} 12. O-O {[%emt 0:00:27]} Qd7 {[%emt 0:00:22]} 13.
d4 {[%emt 0:01:46]} Bxb3 {[%emt 0:00:04]} 14. Qxb3 {[%emt 0:00:16]} exd4 {
[%emt 0:00:23]} 15. cxd4 {[%emt 0:00:31]} Rfe8 {[%emt 0:00:02]} 16. Nd2 {
[%emt 0:00:17]} c6 {[%emt 0:01:10]} 17. Rad1 {[%emt 0:00:26]} Rab8 {[%emt 0:00:
34]} 18. f4 {[%emt 0:00:24]} Ne7 {[%emt 0:00:22]} 19. f5 {[%emt 0:00:50]} h6 {
[%emt 0:00:21]} 20. Kh1 {[%emt 0:00:58]} Nc8 {[%emt 0:00:50]} 21. Qd3 {[%emt 0:
00:30]} Qe7 {[%emt 0:00:22]} 22. Rde1 {[%emt 0:00:23]} Ba5 {[%emt 0:00:19]} 23.
Bf4 {[%emt 0:00:08]} Bxd2 {[%emt 0:00:09]} 24. Qxd2 {[%emt 0:00:03]} Nb6 {
[%emt 0:00:46]} 25. b3 {[%emt 0:00:17]} Rbd8 {[%emt 0:00:09]} 26. Qc1 {[%emt 0:
00:21]} Nbd7 {[%emt 0:00:28]} 27. e5 {[%emt 0:00:29]} dxe5 {[%emt 0:00:27]} 28.
dxe5 {[%emt 0:00:08]} Nd5 {[%emt 0:00:03]} 29. f6 {[%emt 0:01:24]} Qc5 {
[%emt 0:00:28]} 30. Qd2 {[%emt 0:00:43]} Nxf4 {[%emt 0:01:04]} 31. Qxf4 {
[%emt 0:00:09]} g5 {[%emt 0:01:01]} 32. Qg4 {[%emt 0:00:49]} Rxe5 {[%emt 0:01:
28]} 33. Rd1 {[%emt 0:00:12]} Rd5 {[%emt 0:00:14]} 34. Rxd5 {[%emt 0:00:06]}
cxd5 {[%emt 0:00:09]} 35. Nf5 {[%emt 0:00:52]} Qb5 {[%emt 0:04:17]} 36. Nxh6+ {
[%emt 0:01:27]} Kf8 {[%emt 0:01:19]} 37. Rf5 {[%emt 0:00:52]} Ke8 {[%emt 0:01:
39]} 38. Qxg5 {[%emt 0:00:27]} Nf8 {[%emt 0:00:09]} 39. Re5+ {[%emt 0:00:05]}
1-0

[Event "European Rapid Championship 2021"]
[Site "Katowice"]
[Date "2021.12.18"]
[Round "6.13"]
[White "Balacek, Tadeas"]
[Black "Lewtak, Dominik"]
[Result "0-1"]
[ECO "D43"]
[WhiteElo "2354"]
[BlackElo "2165"]
[Annotator "NA"]
[PlyCount "66"]
[EventDate "2021.12.18"]
[EventType "swiss"]
[EventCountry "POL"]
[SourceTitle "playchess.com"]
[Source "ChessBase"]
[SourceQuality "1"]
[TimeControl "900+10"]

1. d4 {[%emt 0:00:03]} d5 {[%emt 0:00:01]} 2. c4 {[%emt 0:00:01]} c6 {[%emt 0:
00:03]} 3. Nf3 {[%emt 0:00:02]} Nf6 {[%emt 0:00:02]} 4. Nc3 {[%emt 0:00:02]} e6
{[%emt 0:00:02]} 5. g3 {[%emt 0:00:01]} Nbd7 {[%emt 0:00:10]} 6. Bg2 {[%emt 0:
00:02]} Bb4 {[%emt 0:00:03]} 7. O-O {[%emt 0:00:04]} O-O {[%emt 0:00:03]} 8.
Qb3 {[%emt 0:00:42]} a5 {[%emt 0:00:23]} 9. a3 {[%emt 0:01:28]} Bxc3 {[%emt 0:
00:40]} 10. Qxc3 {[%emt 0:00:04]} b5 {[%emt 0:00:08]} 11. c5 {[%emt 0:00:31]}
Ne4 {[%emt 0:00:17]} 12. Qc2 {[%emt 0:00:03]} f6 {[%emt 0:00:17]} 13. Nd2 {
[%emt 0:01:03]} Nxd2 {[%emt 0:00:18]} 14. Bxd2 {[%emt 0:00:02]} e5 {[%emt 0:00:
02]} 15. e4 {[%emt 0:00:01]} Nb8 {[%emt 0:02:51]} 16. exd5 {[%emt 0:03:25]}
cxd5 {[%emt 0:00:02]} 17. Qb3 {[%emt 0:00:01]} Bb7 {[%emt 0:00:07]} 18. Qxb5 {
[%emt 0:00:05]} Ba6 {[%emt 0:00:13]} 19. Qb3 {[%emt 0:00:57]} Bc4 {[%emt 0:00:
05]} 20. Qc2 {[%emt 0:01:45]} Bxf1 {[%emt 0:00:06]} 21. Rxf1 {[%emt 0:00:06]}
Nc6 {[%emt 0:00:15]} 22. dxe5 {[%emt 0:00:32]} fxe5 {[%emt 0:00:04]} 23. Qb3 {
[%emt 0:00:14]} Ne7 {[%emt 0:00:55]} 24. Bg5 {[%emt 0:00:25]} Rb8 {[%emt 0:01:
16]} 25. Qa2 {[%emt 0:01:17]} Kh8 {[%emt 0:00:05]} 26. Rd1 {[%emt 0:01:28]} Qc7
{[%emt 0:01:53]} 27. Bxe7 {[%emt 0:03:32]} Qxe7 {[%emt 0:00:02]} 28. Rxd5 {
[%emt 0:00:02]} Rfc8 {[%emt 0:00:21]} 29. Qc4 {[%emt 0:00:54]} Rxb2 {[%emt 0:
00:05]} 30. Be4 {[%emt 0:00:02]} Qf6 {[%emt 0:00:34]} 31. f3 {[%emt 0:00:31]}
Qh6 {[%emt 0:00:15]} 32. Bc2 {[%emt 0:00:22]} Qe3+ {[%emt 0:00:07]} 33. Kg2 {
[%emt 0:00:01]} Qc1 {[%emt 0:00:08]} 0-1

[Event "European Rapid Championship 2021"]
[Site "Katowice"]
[Date "2021.12.18"]
[Round "6.14"]
[White "Kacprzak, Karol"]
[Black "Kyc, Jerzy"]
[Result "0-1"]
[ECO "A04"]
[WhiteElo "2038"]
[BlackElo "2308"]
[Annotator "NA"]
[PlyCount "96"]
[EventDate "2021.12.18"]
[EventType "swiss"]
[EventCountry "POL"]
[SourceTitle "playchess.com"]
[Source "ChessBase"]
[SourceQuality "1"]
[TimeControl "900+10"]

1. Nf3 {[%emt 0:00:21]} c5 {[%emt 0:00:03]} 2. c4 {[%emt 0:00:52]} Nf6 {
[%emt 0:00:03]} 3. Nc3 {[%emt 0:00:11]} g6 {[%emt 0:00:01]} 4. e4 {[%emt 0:00:
25]} Bg7 {[%emt 0:00:14]} 5. d4 {[%emt 0:00:03]} cxd4 {[%emt 0:00:01]} 6. Nxd4
{[%emt 0:00:02]} O-O {[%emt 0:00:09]} 7. Be2 {[%emt 0:00:11]} d6 {[%emt 0:00:
25]} 8. Be3 {[%emt 0:00:08]} Nc6 {[%emt 0:00:01]} 9. O-O {[%emt 0:00:04]} Nxd4
{[%emt 0:00:07]} 10. Bxd4 {[%emt 0:00:17]} Be6 {[%emt 0:00:12]} 11. Qd2 {
[%emt 0:00:29]} Qa5 {[%emt 0:00:03]} 12. Rfd1 {[%emt 0:00:09]} Rfc8 {[%emt 0:
01:21]} 13. b3 {[%emt 0:00:44]} a6 {[%emt 0:00:13]} 14. f3 {[%emt 0:01:14]} Nd7
{[%emt 0:02:10]} 15. Rac1 {[%emt 0:01:10]} Bxd4+ {[%emt 0:00:12]} 16. Qxd4 {
[%emt 0:00:02]} b5 {[%emt 0:00:58]} 17. cxb5 {[%emt 0:03:27]} axb5 {[%emt 0:00:
03]} 18. b4 {[%emt 0:00:02]} Qa3 {[%emt 0:01:12]} 19. Bxb5 {[%emt 0:02:28]} Ne5
{[%emt 0:00:03]} 20. f4 {[%emt 0:01:41]} Nc6 {[%emt 0:00:07]} 21. Qd2 {[%emt 0:
01:26]} Nxb4 {[%emt 0:00:21]} 22. f5 {[%emt 0:00:11]} Qa7+ {[%emt 0:00:33]} 23.
Kh1 {[%emt 0:00:03]} Bxa2 {[%emt 0:03:11]} 24. Nxa2 {[%emt 0:02:25]} Nxa2 {
[%emt 0:00:07]} 25. Rxc8+ {[%emt 0:00:10]} Rxc8 {[%emt 0:00:01]} 26. Ra1 {
[%emt 0:00:01]} Qc5 {[%emt 0:00:41]} 27. Ba6 {[%emt 0:00:48]} Qc1+ {[%emt 0:00:
04]} 28. Rxc1 {[%emt 0:00:01]} Rxc1+ {[%emt 0:00:02]} 29. Qxc1 {[%emt 0:00:01]}
Nxc1 {[%emt 0:00:06]} 30. Bc4 {[%emt 0:00:06]} gxf5 {[%emt 0:00:02]} 31. exf5 {
[%emt 0:00:01]} Kg7 {[%emt 0:00:04]} 32. Kg1 {[%emt 0:00:04]} Kf6 {[%emt 0:00:
06]} 33. Kf2 {[%emt 0:00:02]} e6 {[%emt 0:00:01]} 34. fxe6 {[%emt 0:00:07]}
fxe6 {[%emt 0:00:01]} 35. Ke3 {[%emt 0:00:12]} d5 {[%emt 0:00:03]} 36. Bb5 {
[%emt 0:00:06]} Nb3 {[%emt 0:00:08]} 37. Bd3 {[%emt 0:00:02]} h6 {[%emt 0:00:
02]} 38. Bc2 {[%emt 0:00:35]} Na5 {[%emt 0:00:33]} 39. Kd4 {[%emt 0:00:06]}
Nc6+ {[%emt 0:00:06]} 40. Kc5 {[%emt 0:00:05]} Ne5 {[%emt 0:00:05]} 41. h3 {
[%emt 0:00:12]} Nc4 {[%emt 0:00:09]} 42. Bd3 {[%emt 0:00:22]} Ne3 {[%emt 0:00:
07]} 43. g3 {[%emt 0:00:04]} Ke5 {[%emt 0:00:09]} 44. h4 {[%emt 0:00:12]} Nf5 {
[%emt 0:00:06]} 45. Kc6 {[%emt 0:00:29]} Nxg3 {[%emt 0:00:05]} 46. Kd7 {
[%emt 0:00:01]} d4 {[%emt 0:00:13]} 47. Ke7 {[%emt 0:00:01]} Nf5+ {[%emt 0:00:
02]} 48. Kf7 {[%emt 0:00:02]} Nxh4 0-1

[Event "European Rapid Championship 2021"]
[Site "Katowice"]
[Date "2021.12.18"]
[Round "6.15"]
[White "Wisniewski, Adrian"]
[Black "Hasterok, Mateusz"]
[Result "1/2-1/2"]
[ECO "B40"]
[WhiteElo "2351"]
[BlackElo "2132"]
[Annotator "NA"]
[PlyCount "106"]
[EventDate "2021.12.18"]
[EventType "swiss"]
[EventCountry "POL"]
[SourceTitle "playchess.com"]
[Source "ChessBase"]
[SourceQuality "1"]
[TimeControl "900+10"]

1. e4 {[%emt 0:00:02]} c5 {[%emt 0:00:01]} 2. Nf3 {[%emt 0:00:02]} e6 {[%emt 0:
00:01]} 3. c3 {[%emt 0:00:01]} Qa5 {[%emt 0:00:03]} 4. Bc4 {[%emt 0:00:28]} b5
{[%emt 0:00:02]} 5. Bb3 {[%emt 0:00:01]} Bb7 {[%emt 0:00:04]} 6. d3 {[%emt 0:
00:05]} Nf6 {[%emt 0:00:17]} 7. O-O {[%emt 0:00:10]} Be7 {[%emt 0:00:10]} 8.
Bg5 {[%emt 0:00:15]} d6 {[%emt 0:00:09]} 9. Nbd2 {[%emt 0:00:25]} Nbd7 {
[%emt 0:00:10]} 10. Qe2 {[%emt 0:00:26]} h6 {[%emt 0:00:47]} 11. Bh4 {[%emt 0:
00:08]} g5 {[%emt 0:01:29]} 12. Bg3 {[%emt 0:00:02]} Nh5 {[%emt 0:00:02]} 13.
d4 {[%emt 0:01:10]} Qb6 {[%emt 0:01:08]} 14. a4 {[%emt 0:04:33]} a6 {[%emt 0:
01:06]} 15. axb5 {[%emt 0:00:03]} axb5 {[%emt 0:00:02]} 16. Rxa8+ {[%emt 0:00:
02]} Bxa8 {[%emt 0:00:01]} 17. Ra1 {[%emt 0:00:38]} Bb7 {[%emt 0:00:40]} 18. e5
{[%emt 0:00:28]} Nxg3 {[%emt 0:00:19]} 19. hxg3 {[%emt 0:00:03]} dxe5 {[%emt 0:
00:20]} 20. dxe5 {[%emt 0:03:11]} g4 {[%emt 0:01:25]} 21. Nh2 {[%emt 0:01:02]}
h5 {[%emt 0:00:04]} 22. Bc2 {[%emt 0:00:05]} c4 {[%emt 0:00:46]} 23. Nhf1 {
[%emt 0:02:49]} h4 {[%emt 0:02:20]} 24. Be4 {[%emt 0:00:01]} hxg3 {[%emt 0:00:
08]} 25. Nxg3 {[%emt 0:00:08]} Bh4 {[%emt 0:01:25]} 26. Bxb7 {[%emt 0:00:29]}
Qxb7 {[%emt 0:00:25]} 27. Nde4 {[%emt 0:00:01]} Ke7 {[%emt 0:00:36]} 28. Qe3 {
[%emt 0:01:03]} Qd5 {[%emt 0:00:31]} 29. Nf6 {[%emt 0:01:21]} Qxe5 {[%emt 0:00:
46]} 30. Nxg4 {[%emt 0:00:01]} Qxe3 {[%emt 0:00:25]} 31. Nxe3 {[%emt 0:00:01]}
Bxg3 {[%emt 0:00:13]} 32. fxg3 {[%emt 0:00:01]} Rg8 {[%emt 0:00:26]} 33. Kf2 {
[%emt 0:00:01]} Nc5 {[%emt 0:00:06]} 34. Ra7+ {[%emt 0:00:02]} Kf6 {[%emt 0:00:
08]} 35. Kf3 {[%emt 0:00:11]} Nd3 {[%emt 0:00:12]} 36. Ng4+ {[%emt 0:00:07]}
Kg7 {[%emt 0:00:10]} 37. Rb7 {[%emt 0:00:04]} Nxb2 {[%emt 0:00:14]} 38. Rxb5 {
[%emt 0:00:02]} Nd3 {[%emt 0:00:02]} 39. Rb7 {[%emt 0:00:04]} Ra8 {[%emt 0:00:
59]} 40. Rc7 {[%emt 0:00:03]} Kg6 {[%emt 0:00:15]} 41. Ke3 {[%emt 0:00:25]} f5
{[%emt 0:00:40]} 42. Rxc4 {[%emt 0:00:32]} Nb2 {[%emt 0:00:23]} 43. Rb4 {
[%emt 0:00:37]} Nd1+ {[%emt 0:00:14]} 44. Kd2 {[%emt 0:00:01]} Rd8+ {[%emt 0:
00:01]} 45. Rd4 {[%emt 0:00:02]} Rxd4+ {[%emt 0:01:27]} 46. cxd4 {[%emt 0:00:
01]} fxg4 {[%emt 0:00:01]} 47. Kxd1 {[%emt 0:00:01]} Kf5 {[%emt 0:00:01]} 48.
Kd2 {[%emt 0:00:05]} Ke4 {[%emt 0:00:01]} 49. Kc3 {[%emt 0:00:01]} Ke3 {
[%emt 0:00:02]} 50. Kc4 {[%emt 0:00:04]} Kf2 {[%emt 0:00:39]} 51. Kc5 {[%emt 0:
00:12]} Kxg3 {[%emt 0:00:02]} 52. Kd6 {[%emt 0:00:01]} Kxg2 {[%emt 0:00:01]}
53. Kxe6 {[%emt 0:00:01]} Kf2 {[%emt 0:00:04]} 1/2-1/2

[Event "European Rapid Championship 2021"]
[Site "Katowice"]
[Date "2021.12.18"]
[Round "6.15"]
[White "Rudnicki, Milosz"]
[Black "Andersen, Mads"]
[Result "0-1"]
[ECO "D00"]
[WhiteElo "2200"]
[BlackElo "2574"]
[Annotator "ChessBase"]
[PlyCount "64"]
[EventDate "2021.12.18"]
[EventType "swiss"]
[EventCountry "POL"]
[SourceTitle "playchess.com"]
[Source "ChessBase"]
[SourceQuality "1"]
[TimeControl "900+10"]

1. d4 {[%emt 0:00:02]} d5 {[%emt 0:00:04]} 2. Bf4 {[%emt 0:00:02]} c5 {[%emt 0:
00:04]} 3. e3 {[%emt 0:00:04]} Nc6 {[%emt 0:00:03]} 4. c3 {[%emt 0:00:02]} Bf5
{[%emt 0:00:11]} 5. Nd2 {[%emt 0:00:06]} e6 {[%emt 0:00:15]} 6. a4 {[%emt 0:00:
03]} cxd4 {[%emt 0:00:38]} 7. exd4 {[%emt 0:00:10]} Nge7 {[%emt 0:00:06]} 8.
Ngf3 {[%emt 0:00:37]} f6 {[%emt 0:01:19]} 9. Be2 {[%emt 0:02:32]} g5 {[%emt 0:
00:41]} 10. Bg3 {[%emt 0:01:43]} h5 {[%emt 0:00:06]} 11. h3 {[%emt 0:00:03]}
Ng6 {[%emt 0:01:45]} 12. Qb3 {[%emt 0:00:37]} Rh7 {[%emt 0:00:31]} 13. O-O-O {
[%emt 0:01:07]} Rc8 {[%emt 0:00:50]} 14. Nf1 {[%emt 0:03:34]} Na5 {[%emt 0:03:
27]} 15. Qa2 {[%emt 0:01:06]} h4 {[%emt 0:01:36]} 16. Bh2 {[%emt 0:00:06]} Qb6
{[%emt 0:01:09]} 17. Bd3 {[%emt 0:00:17]} Bxd3 {[%emt 0:00:23]} 18. Rxd3 {
[%emt 0:00:03]} Bd6 {[%emt 0:00:02]} 19. Re3 {[%emt 0:01:23]} Re7 {[%emt 0:00:
53]} 20. Bxd6 {[%emt 0:00:59]} Qxd6 {[%emt 0:00:02]} 21. N1h2 {[%emt 0:00:01]}
Nc4 {[%emt 0:00:19]} 22. Re2 {[%emt 0:00:40]} Nf4 {[%emt 0:00:05]} 23. Rc2 {
[%emt 0:01:00]} Nxg2 {[%emt 0:00:11]} 24. Kb1 {[%emt 0:00:10]} Kf7 {[%emt 0:00:
30]} 25. Qb3 {[%emt 0:00:44]} Rc6 {[%emt 0:00:18]} 26. Nd2 {[%emt 0:00:41]} Nf4
{[%emt 0:01:15]} 27. Ng4 {[%emt 0:00:14]} Kg7 {[%emt 0:00:06]} 28. Nxc4 {
[%emt 0:00:22]} dxc4 {[%emt 0:00:15]} 29. Qb5 {[%emt 0:00:03]} a6 {[%emt 0:00:
28]} 30. Qa5 {[%emt 0:00:05]} Qd5 {[%emt 0:00:27]} 31. Qb4 {[%emt 0:00:21]}
Qxh1+ {[%emt 0:00:04]} 32. Rc1 {[%emt 0:00:01]} Qe4+ {[%emt 0:00:01]} 0-1

[Event "European Rapid Championship 2021"]
[Site "Katowice"]
[Date "2021.12.18"]
[Round "6.16"]
[White "Sliwicka, Alicja"]
[Black "Laurusas, Tomas"]
[Result "0-1"]
[ECO "B54"]
[WhiteElo "2303"]
[BlackElo "2553"]
[Annotator "ChessBase"]
[PlyCount "100"]
[EventDate "2021.12.18"]
[EventType "swiss"]
[EventCountry "POL"]
[SourceTitle "playchess.com"]
[Source "ChessBase"]
[SourceQuality "1"]
[TimeControl "900+10"]

1. e4 {[%emt 0:00:02]} c5 {[%emt 0:00:02]} 2. Nf3 {[%emt 0:00:01]} d6 {[%emt 0:
00:30]} 3. d4 {[%emt 0:00:02]} cxd4 {[%emt 0:00:01]} 4. Nxd4 {[%emt 0:00:02]}
Nf6 {[%emt 0:00:01]} 5. f3 {[%emt 0:00:01]} a6 {[%emt 0:01:07]} 6. c4 {[%emt 0:
00:03]} e6 {[%emt 0:00:02]} 7. Nc3 {[%emt 0:00:04]} Be7 {[%emt 0:00:04]} 8. Be2
{[%emt 0:00:10]} b6 {[%emt 0:00:09]} 9. Qa4+ {[%emt 0:00:51]} Bd7 {[%emt 0:02:
21]} 10. Qb3 {[%emt 0:00:48]} O-O {[%emt 0:01:45]} 11. Be3 {[%emt 0:00:06]} Qc7
{[%emt 0:01:19]} 12. Nc2 {[%emt 0:00:49]} Bd8 {[%emt 0:01:05]} 13. Rd1 {
[%emt 0:03:30]} Nc6 {[%emt 0:00:14]} 14. a3 {[%emt 0:00:28]} Na5 {[%emt 0:02:
12]} 15. Qa2 {[%emt 0:00:02]} Be7 {[%emt 0:00:58]} 16. O-O {[%emt 0:03:24]}
Rfc8 {[%emt 0:00:01]} 17. Rb1 {[%emt 0:05:57]} Be8 {[%emt 0:03:52]} 18. Bf2 {
[%emt 0:00:48]} Nxc4 {[%emt 0:00:29]} 19. Bxc4 {[%emt 0:00:01]} Qxc4 {[%emt 0:
00:01]} 20. Qxc4 {[%emt 0:00:01]} Rxc4 {[%emt 0:00:01]} 21. Bxb6 a5 22. Bf2 {
[%emt 0:01:13]} Nd7 {[%emt 0:00:32]} 23. Nd4 {[%emt 0:00:10]} Ne5 {[%emt 0:00:
10]} 24. Rfd1 {[%emt 0:00:07]} Rb8 {[%emt 0:00:26]} 25. Kf1 {[%emt 0:00:10]}
Rc7 {[%emt 0:00:33]} 26. Na2 {[%emt 0:00:23]} Nc4 {[%emt 0:00:13]} 27. b4 {
[%emt 0:00:13]} Nxa3 {[%emt 0:00:06]} 28. Rb3 {[%emt 0:00:02]} Ba4 29. Rxa3 {
[%emt 0:00:09]} Bxd1 {[%emt 0:00:35]} 30. Rxa5 {[%emt 0:00:15]} Bf6 {[%emt 0:
00:48]} 31. Nb5 {[%emt 0:00:11]} Rc2 {[%emt 0:00:07]} 32. Ke1 {[%emt 0:00:07]}
Re2+ {[%emt 0:00:25]} 33. Kf1 {[%emt 0:00:10]} Rb2 {[%emt 0:00:11]} 34. Ke1 {
[%emt 0:00:07]} Bb3 {[%emt 0:00:13]} 35. Nac3 {[%emt 0:00:01]} Bc4 {[%emt 0:00:
09]} 36. Ba7 {[%emt 0:00:27]} Ra8 {[%emt 0:00:13]} 37. Kd1 {[%emt 0:00:01]}
Rxb4 {[%emt 0:00:04]} 38. f4 {[%emt 0:00:17]} h5 {[%emt 0:00:02]} 39. Kc2 {
[%emt 0:00:08]} Bxb5 {[%emt 0:00:02]} 40. Nxb5 {[%emt 0:00:04]} Rxb5 {[%emt 0:
00:02]} 41. Rxb5 {[%emt 0:00:01]} Rxa7 {[%emt 0:00:01]} 42. Kb3 {[%emt 0:00:29]
} g6 {[%emt 0:00:07]} 43. Rb6 {[%emt 0:00:06]} Be7 {[%emt 0:00:10]} 44. g3 {
[%emt 0:00:10]} Rc7 {[%emt 0:00:08]} 45. Ra6 {[%emt 0:00:07]} d5 {[%emt 0:00:
04]} 46. exd5 {[%emt 0:00:12]} exd5 {[%emt 0:00:01]} 47. Ra5 {[%emt 0:00:01]}
Rc5 {[%emt 0:00:02]} 48. Ra7 {[%emt 0:00:03]} Bf6 {[%emt 0:00:01]} 49. Rd7 {
[%emt 0:00:03]} d4 {[%emt 0:00:03]} 50. Rd6 {[%emt 0:00:10]} Kg7 {[%emt 0:00:
02]} 0-1

[Event "European Rapid Championship 2021"]
[Site "Katowice"]
[Date "2021.12.18"]
[Round "6.16"]
[White "Jagodzinski, Piotr"]
[Black "Snihur, Piotr"]
[Result "1/2-1/2"]
[ECO "A06"]
[WhiteElo "2145"]
[BlackElo "2006"]
[Annotator "ChessBase"]
[PlyCount "154"]
[EventDate "2021.12.18"]
[EventType "swiss"]
[EventCountry "POL"]
[SourceTitle "playchess.com"]
[Source "ChessBase"]
[SourceQuality "1"]
[TimeControl "900+10"]

1. Nf3 {[%emt 0:00:01]} d5 {[%emt 0:00:09]} 2. b3 {[%emt 0:00:02]} Nf6 {
[%emt 0:00:16]} 3. Bb2 {[%emt 0:00:01]} Bf5 {[%emt 0:00:07]} 4. e3 {[%emt 0:00:
02]} e6 {[%emt 0:00:05]} 5. Ne5 {[%emt 0:00:11]} Nbd7 {[%emt 0:00:09]} 6. Nxd7
{[%emt 0:00:04]} Qxd7 {[%emt 0:00:08]} 7. d3 {[%emt 0:00:02]} Be7 {[%emt 0:00:
12]} 8. Be2 {[%emt 0:00:01]} h6 {[%emt 0:00:21]} 9. Nd2 {[%emt 0:00:01]} O-O {
[%emt 0:00:05]} 10. Nf3 {[%emt 0:00:02]} c5 {[%emt 0:00:23]} 11. Ne5 {[%emt 0:
00:14]} Qc7 {[%emt 0:00:06]} 12. f4 {[%emt 0:00:28]} Bh7 {[%emt 0:00:42]} 13.
g4 {[%emt 0:01:00]} Nd7 {[%emt 0:01:00]} 14. h4 {[%emt 0:00:02]} Nxe5 {[%emt 0:
00:34]} 15. Bxe5 {[%emt 0:00:25]} Bd6 {[%emt 0:00:06]} 16. Bxd6 {[%emt 0:00:04]
} Qxd6 {[%emt 0:00:01]} 17. g5 {[%emt 0:00:01]} d4 {[%emt 0:01:22]} 18. Qd2 {
[%emt 0:00:42]} dxe3 {[%emt 0:01:32]} 19. Qxe3 {[%emt 0:00:04]} Qd4 {[%emt 0:
00:45]} 20. Qxd4 {[%emt 0:00:54]} cxd4 {[%emt 0:00:00]} 21. Bf3 {[%emt 0:00:00]
} Rac8 {[%emt 0:00:40]} 22. Kd2 {[%emt 0:00:02]} Rc7 {[%emt 0:00:19]} 23. Rag1
{[%emt 0:01:27]} Rfc8 {[%emt 0:01:20]} 24. Bd1 {[%emt 0:00:02]} Kf8 {[%emt 0:
00:33]} 25. Ke2 {[%emt 0:01:40]} Bg6 {[%emt 0:00:51]} 26. h5 {[%emt 0:00:51]}
Bf5 {[%emt 0:00:08]} 27. Kf3 {[%emt 0:00:04]} b5 {[%emt 0:01:17]} 28. Re1 {
[%emt 0:00:44]} Rc5 {[%emt 0:01:11]} 29. gxh6 {[%emt 0:02:53]} gxh6 {[%emt 0:
00:02]} 30. Re5 {[%emt 0:00:01]} b4 {[%emt 0:03:09]} 31. Rh2 {[%emt 0:00:44]}
f6 {[%emt 0:00:33]} 32. Re1 {[%emt 0:00:03]} Ra5 {[%emt 0:00:42]} 33. Rg2 {
[%emt 0:00:26]} Rc7 {[%emt 0:01:00]} 34. Reg1 {[%emt 0:03:46]} Bh7 {[%emt 0:00:
02]} 35. Re1 {[%emt 0:01:56]} Re7 {[%emt 0:00:09]} 36. Kf2 {[%emt 0:01:28]}
Rxa2 {[%emt 0:00:08]} 37. Ke2 {[%emt 0:00:01]} Rc7 {[%emt 0:00:40]} 38. Kd2 {
[%emt 0:00:04]} Bf5 {[%emt 0:00:16]} 39. Reg1 {[%emt 0:00:01]} Bh7 {[%emt 0:00:
01]} 40. Rg3 {[%emt 0:00:20]} Ra5 {[%emt 0:00:27]} 41. Bg4 {[%emt 0:00:10]} Ra2
{[%emt 0:00:04]} 42. Bd1 {[%emt 0:00:08]} Re7 {[%emt 0:00:10]} 43. Kc1 {
[%emt 0:00:04]} Ra1+ {[%emt 0:00:14]} 44. Kb2 {[%emt 0:00:04]} Ra5 {[%emt 0:00:
01]} 45. Bf3 {[%emt 0:00:15]} Ke8 {[%emt 0:00:25]} 46. Bc6+ {[%emt 0:00:25]}
Kd8 {[%emt 0:00:00]} 47. Rg7 {[%emt 0:00:18]} Bf5 {[%emt 0:00:11]} 48. Rg8+ {
[%emt 0:00:06]} Kc7 {[%emt 0:00:01]} 49. Bf3 {[%emt 0:00:07]} e5 {[%emt 0:00:
30]} 50. Rh8 {[%emt 0:00:23]} Bh7 {[%emt 0:00:11]} 51. f5 {[%emt 0:00:21]} Bxf5
{[%emt 0:00:07]} 52. Rxh6 {[%emt 0:00:02]} Ra6 {[%emt 0:00:12]} 53. Bd5 {
[%emt 0:00:11]} Bd7 {[%emt 0:00:11]} 54. Rgg6 {[%emt 0:00:14]} Be8 {[%emt 0:00:
09]} 55. Rg8 {[%emt 0:00:02]} Rd6 {[%emt 0:00:05]} 56. Be4 {[%emt 0:00:08]} f5
{[%emt 0:00:16]} 57. Rxd6 {[%emt 0:00:19]} Kxd6 {[%emt 0:00:02]} 58. Bxf5 {
[%emt 0:00:01]} Bxh5 {[%emt 0:00:04]} 59. Rd8+ {[%emt 0:00:02]} Kc7 {[%emt 0:
00:09]} 60. Rd5 {[%emt 0:00:04]} Be8 {[%emt 0:00:10]} 61. Rc5+ {[%emt 0:00:10]}
Kb6 62. Rd5 {[%emt 0:00:08]} Bc6 {[%emt 0:00:21]} 63. Rd6 {[%emt 0:00:04]} Kc5
{[%emt 0:00:07]} 64. Rh6 {[%emt 0:00:11]} a5 {[%emt 0:00:15]} 65. Rh5 {[%emt 0:
00:17]} a4 {[%emt 0:00:19]} 66. bxa4 Bxa4 {[%emt 0:00:01]} 67. Be4 {[%emt 0:00:
12]} Bc6 {[%emt 0:00:10]} 68. Bxc6 {[%emt 0:00:08]} Kxc6 69. Kb3 Kc5 {[%emt 0:
00:20]} 70. Rh8 {[%emt 0:00:02]} e4 {[%emt 0:00:20]} 71. Rh5+ {[%emt 0:00:30]}
Kc6 {[%emt 0:00:11]} 72. dxe4 {[%emt 0:00:05]} Rxe4 {[%emt 0:00:04]} 73. Kc4 {
[%emt 0:00:08]} d3+ {[%emt 0:00:09]} 74. Kxd3 {[%emt 0:00:10]} Rg4 {[%emt 0:00:
03]} 75. Kd2 {[%emt 0:00:08]} Kb6 {[%emt 0:00:08]} 76. Kc1 {[%emt 0:00:01]} Rg3
{[%emt 0:00:12]} 77. Kb2 {[%emt 0:00:01]} Kc6 {[%emt 0:00:01]} 1/2-1/2